[Event "*** MasterClass Titled Tuesday Blitz"]
[Site "Chess.com"]
[Date "2017.12.12"]
[Round "5"]
[White "dusanacns"]
[Black "Big_Fishy"]
[Result "0-1"]
[WhiteElo "2577"]
[BlackElo "2364"]
[TimeControl "180+2"]
[EndTime "14:07:27 PST"]
[Termination "Big_Fishy won by resignation"]

1. d4 {[%clk 0:03:01.9]} 1... Nf6 {[%clk 0:03:00.2]} 2. Bf4 {[%clk 0:03:02.5]}
2... c5 {[%clk 0:03:00.2]} 3. e3 {[%clk 0:03:03.4]} 3... Qb6 {[%clk 0:03:00.8]}
4. Na3 {[%clk 0:03:03.3]} 4... cxd4 {[%clk 0:02:58]} 5. exd4 {[%clk 0:02:50.1]}
5... d5 {[%clk 0:02:34.7]} 6. Nb5 {[%clk 0:02:47.1]} 6... Na6 {[%clk 0:02:34.5]}
7. c3 {[%clk 0:02:43.2]} 7... Bd7 {[%clk 0:02:30.9]} 8. a4 {[%clk 0:02:44.1]}
8... g6 {[%clk 0:02:14.1]} 9. Be2 {[%clk 0:02:40.2]} 9... Bg7 {[%clk 0:02:13.5]}
10. h3 {[%clk 0:02:37.3]} 10... O-O {[%clk 0:02:12.3]} 11. Nf3 {[%clk
0:02:38.2]} 11... Ne4 {[%clk 0:01:58]} 12. O-O {[%clk 0:02:33.4]} 12... Bxb5
{[%clk 0:01:32.2]} 13. axb5 {[%clk 0:02:30.4]} 13... Nc7 {[%clk 0:01:32.6]} 14.
Qa4 {[%clk 0:01:50.2]} 14... Nd6 {[%clk 0:01:26.4]} 15. Qb4 {[%clk 0:01:28]}
15... Ncxb5 {[%clk 0:01:09.1]} 16. Bxb5 {[%clk 0:01:25.3]} 16... Nxb5 {[%clk
0:01:07.9]} 17. Qxe7 {[%clk 0:01:24.7]} 17... Rfe8 {[%clk 0:01:05.2]} 18. Qh4
{[%clk 0:01:21.3]} 18... Nd6 {[%clk 0:00:57.8]} 19. Bxd6 {[%clk 0:01:00.2]}
19... Qxd6 {[%clk 0:00:58.1]} 20. Rfe1 {[%clk 0:01:00.5]} 20... a6 {[%clk
0:00:57]} 21. Qg5 {[%clk 0:00:56.8]} 21... h6 {[%clk 0:00:56]} 22. Qd2 {[%clk
0:00:56.7]} 22... Re4 {[%clk 0:00:46.8]} 23. Nh2 {[%clk 0:00:44]} 23... Rae8
{[%clk 0:00:44.4]} 24. Nf1 {[%clk 0:00:40.5]} 24... Qb6 {[%clk 0:00:34.5]} 25.
Rxe4 {[%clk 0:00:39.5]} 25... dxe4 {[%clk 0:00:29.8]} 26. Ne3 {[%clk 0:00:40.4]}
26... f5 {[%clk 0:00:29.7]} 27. Re1 {[%clk 0:00:14.1]} 27... Qb3 {[%clk
0:00:28]} 28. d5 {[%clk 0:00:12.7]} 28... f4 {[%clk 0:00:24.9]} 29. Ng4 {[%clk
0:00:12.6]} 29... h5 {[%clk 0:00:19.3]} 30. Nh2 {[%clk 0:00:13.1]} 30... Bh6
{[%clk 0:00:17.5]} 31. d6 {[%clk 0:00:13.8]} 31... e3 {[%clk 0:00:16.7]} 32.
fxe3 {[%clk 0:00:11.8]} 32... fxe3 {[%clk 0:00:17]} 33. Qd3 {[%clk 0:00:13.2]}
33... Qf7 {[%clk 0:00:15.2]} 34. Nf3 {[%clk 0:00:11]} 34... Bf4 {[%clk
0:00:13.6]} 35. c4 {[%clk 0:00:11.2]} 35... b6 {[%clk 0:00:13.3]} 36. b4 {[%clk
0:00:12.3]} 36... Qf5 {[%clk 0:00:08]} 37. Qd4 {[%clk 0:00:07.8]} 37... Re4
{[%clk 0:00:07]} 38. Qd3 {[%clk 0:00:08.1]} 38... Re6 {[%clk 0:00:05.1]} 39.
Qxf5 {[%clk 0:00:08.5]} 39... gxf5 {[%clk 0:00:05.5]} 40. c5 {[%clk 0:00:10.4]}
40... bxc5 {[%clk 0:00:06]} 41. bxc5 {[%clk 0:00:12.3]} 41... Kf7 {[%clk
0:00:06.3]} 42. Nd4 {[%clk 0:00:13.5]} 42... Re5 {[%clk 0:00:05.9]} 43. Nb3
{[%clk 0:00:12.4]} 43... Rd5 {[%clk 0:00:06]} 44. Kf1 {[%clk 0:00:09.4]} 44...
Rd3 {[%clk 0:00:05.9]} 45. Na5 {[%clk 0:00:04.8]} 45... Bg3 {[%clk 0:00:06.3]}
46. Rc1 {[%clk 0:00:03.6]} 46... Rd2 {[%clk 0:00:05.9]} 47. c6 {[%clk
0:00:03.5]} 47... e2+ {[%clk 0:00:06.8]} 48. Kg1 {[%clk 0:00:04.9]} 48... Rd1+
{[%clk 0:00:08]} 0-1

[Event "*** MasterClass Titled Tuesday Blitz"]
[Site "Chess.com"]
[Date "2017.12.12"]
[Round "5"]
[White "Winehouse83"]
[Black "filali-oujda"]
[Result "0-1"]
[WhiteElo "2428"]
[BlackElo "2370"]
[TimeControl "180+2"]
[EndTime "14:07:31 PST"]
[Termination "filali-oujda won by resignation"]

1. d4 {[%clk 0:02:22]} 1... c6 {[%clk 0:03:01.7]} 2. c4 {[%clk 0:02:22.6]} 2...
d5 {[%clk 0:03:01.9]} 3. Nf3 {[%clk 0:02:22.9]} 3... Nf6 {[%clk 0:03:02.9]} 4.
e3 {[%clk 0:02:21.9]} 4... a6 {[%clk 0:03:00.3]} 5. Nbd2 {[%clk 0:02:14.5]} 5...
Bf5 {[%clk 0:02:59.7]} 6. c5 {[%clk 0:02:10.8]} 6... Nbd7 {[%clk 0:03:00.1]} 7.
Qb3 {[%clk 0:02:05.2]} 7... Qc7 {[%clk 0:02:58.9]} 8. Bd3 {[%clk 0:02:05]} 8...
Bxd3 {[%clk 0:02:52.1]} 9. Qxd3 {[%clk 0:02:06.9]} 9... e5 {[%clk 0:02:52.7]}
10. Qf5 {[%clk 0:02:03.2]} 10... e4 {[%clk 0:02:44.9]} 11. Ng1 {[%clk
0:02:01.8]} 11... g6 {[%clk 0:02:43]} 12. Qh3 {[%clk 0:02:02.2]} 12... b6 {[%clk
0:02:33.1]} 13. cxb6 {[%clk 0:02:01.9]} 13... Qxb6 {[%clk 0:02:31.9]} 14. Ne2
{[%clk 0:02:03.2]} 14... Bd6 {[%clk 0:02:24.4]} 15. O-O {[%clk 0:02:01.7]} 15...
h5 {[%clk 0:02:24.6]} 16. f4 {[%clk 0:01:58]} 16... Ng4 {[%clk 0:02:21.4]} 17.
Nc3 {[%clk 0:01:53.5]} 17... f5 {[%clk 0:02:18.6]} 18. Qg3 {[%clk 0:01:49.6]}
18... h4 {[%clk 0:02:03.2]} 19. Qe1 {[%clk 0:01:50.1]} 19... h3 {[%clk 0:02:02]}
20. g3 {[%clk 0:01:50.9]} 20... Ndf6 {[%clk 0:01:50.7]} 21. Nb3 {[%clk
0:01:45.2]} 21... a5 {[%clk 0:01:47.3]} 22. Na4 {[%clk 0:01:41.4]} 22... Qb5
{[%clk 0:01:44.5]} 23. Nc3 {[%clk 0:01:37.9]} 23... Qc4 {[%clk 0:01:39.8]} 24.
Nd2 {[%clk 0:01:31]} 24... Qd3 {[%clk 0:01:21.3]} 25. Ndb1 {[%clk 0:01:21.4]}
25... c5 {[%clk 0:01:20.1]} 26. Ne2 {[%clk 0:01:04.5]} 26... Nxe3 {[%clk
0:01:18.5]} 27. Bxe3 {[%clk 0:00:58.8]} 27... Qxe3+ {[%clk 0:01:19.2]} 28. Qf2
{[%clk 0:01:00.4]} 28... Ng4 {[%clk 0:01:17.9]} 29. Qxe3 {[%clk 0:00:58.5]}
29... Nxe3 {[%clk 0:01:19.8]} 30. Rc1 {[%clk 0:00:58]} 30... c4 {[%clk
0:01:19.3]} 31. Nbc3 {[%clk 0:00:55.2]} 31... Rb8 {[%clk 0:01:09]} 32. Rab1
{[%clk 0:00:55.7]} 32... Kd7 {[%clk 0:01:05.3]} 33. Kf2 {[%clk 0:00:56.4]} 33...
Ng4+ {[%clk 0:01:05.9]} 34. Kg1 {[%clk 0:00:58]} 34... Ke6 {[%clk 0:01:07.3]}
35. Nd1 {[%clk 0:00:39.9]} 35... Rb4 {[%clk 0:01:03.3]} 36. Nf2 {[%clk
0:00:36.4]} 36... Nf6 {[%clk 0:00:58.4]} 37. Nc3 {[%clk 0:00:32.2]} 37... Rhb8
{[%clk 0:00:57]} 38. Rc2 {[%clk 0:00:32.9]} 38... Bc7 {[%clk 0:00:51.6]} 39.
Nxh3 {[%clk 0:00:33.4]} 39... Bb6 {[%clk 0:00:52.7]} 40. Ng5+ {[%clk 0:00:33.8]}
40... Ke7 {[%clk 0:00:47.5]} 41. Ne2 {[%clk 0:00:21.2]} 41... a4 {[%clk
0:00:47.7]} 42. Kf2 {[%clk 0:00:21.1]} 42... Ng4+ {[%clk 0:00:45.3]} 43. Kg1
{[%clk 0:00:21.3]} 43... Ne3 {[%clk 0:00:45.7]} 44. Rd2 {[%clk 0:00:22]} 44...
Ba7 {[%clk 0:00:43.5]} 45. Nc3 {[%clk 0:00:22.8]} 45... a3 {[%clk 0:00:42.8]}
46. b3 {[%clk 0:00:21.3]} 46... cxb3 {[%clk 0:00:42.8]} 47. axb3 {[%clk
0:00:22.6]} 47... Rxb3 {[%clk 0:00:44.4]} 48. Rxb3 {[%clk 0:00:23.5]} 48... Rxb3
{[%clk 0:00:45.9]} 49. Na4 {[%clk 0:00:17.9]} 49... Rb4 {[%clk 0:00:36.6]} 50.
Nc3 {[%clk 0:00:16.4]} 50... Bxd4 {[%clk 0:00:35.5]} 51. Rxd4 {[%clk 0:00:13.3]}
51... Rxd4 {[%clk 0:00:35.6]} 52. Kf2 {[%clk 0:00:15.2]} 52... Nd1+ {[%clk
0:00:36.3]} 53. Nxd1 {[%clk 0:00:15.4]} 53... a2 {[%clk 0:00:36.2]} 0-1

[Event "*** MasterClass Titled Tuesday Blitz"]
[Site "Chess.com"]
[Date "2017.12.12"]
[Round "5"]
[White "cheese111"]
[Black "NewBornNow"]
[Result "0-1"]
[WhiteElo "2417"]
[BlackElo "2588"]
[TimeControl "180+2"]
[EndTime "14:07:38 PST"]
[Termination "NewBornNow won by resignation"]

1. e4 {[%clk 0:03:01.9]} 1... c6 {[%clk 0:02:59.7]} 2. d4 {[%clk 0:03:02.4]}
2... d5 {[%clk 0:03:00.4]} 3. e5 {[%clk 0:03:03.8]} 3... Bf5 {[%clk 0:03:01]} 4.
g4 {[%clk 0:03:04.2]} 4... Be4 {[%clk 0:03:00.3]} 5. f3 {[%clk 0:03:05.4]} 5...
Bg6 {[%clk 0:03:01.1]} 6. e6 {[%clk 0:03:06.8]} 6... Qd6 {[%clk 0:03:00.8]} 7.
exf7+ {[%clk 0:03:08]} 7... Bxf7 {[%clk 0:03:01.8]} 8. f4 {[%clk 0:03:09.5]}
8... c5 {[%clk 0:02:59.7]} 9. Nc3 {[%clk 0:03:02.1]} 9... cxd4 {[%clk
0:02:56.8]} 10. Nb5 {[%clk 0:03:02.8]} 10... Qd7 {[%clk 0:02:55.3]} 11. Nxd4
{[%clk 0:02:58.2]} 11... Nc6 {[%clk 0:02:56]} 12. Be3 {[%clk 0:02:14.1]} 12...
Nf6 {[%clk 0:02:55]} 13. Bh3 {[%clk 0:02:02.3]} 13... e6 {[%clk 0:02:50.7]} 14.
Ngf3 {[%clk 0:02:01.6]} 14... Bd6 {[%clk 0:02:44.2]} 15. O-O {[%clk 0:01:45.9]}
15... O-O {[%clk 0:02:41.2]} 16. c3 {[%clk 0:01:13]} 16... Ne4 {[%clk
0:02:34.5]} 17. Nd2 {[%clk 0:01:00.2]} 17... Bg6 {[%clk 0:02:26.1]} 18. g5
{[%clk 0:00:51.6]} 18... Nxd4 {[%clk 0:02:25.2]} 19. cxd4 {[%clk 0:00:51.5]}
19... Nxd2 {[%clk 0:02:17]} 20. Qxd2 {[%clk 0:00:51.3]} 20... Bf5 {[%clk
0:02:17.7]} 21. Bg2 {[%clk 0:00:50.9]} 21... Rac8 {[%clk 0:02:12.8]} 22. Rac1
{[%clk 0:00:51.2]} 22... Qa4 {[%clk 0:02:11.2]} 23. a3 {[%clk 0:00:48.6]} 23...
Qb3 {[%clk 0:02:07]} 24. Bf3 {[%clk 0:00:30.6]} 24... a6 {[%clk 0:02:01.8]} 25.
Rxc8 {[%clk 0:00:18.5]} 25... Rxc8 {[%clk 0:02:00.6]} 26. Rc1 {[%clk 0:00:20.4]}
26... Rxc1+ {[%clk 0:01:33.5]} 27. Qxc1 {[%clk 0:00:22.3]} 27... Bc2 {[%clk
0:01:31.6]} 28. Kf2 {[%clk 0:00:14.7]} 28... Kf7 {[%clk 0:01:19.3]} 29. Bh5+
{[%clk 0:00:09.9]} 29... g6 {[%clk 0:01:14.9]} 30. Bf3 {[%clk 0:00:05.9]} 30...
a5 {[%clk 0:01:15]} 31. Qd2 {[%clk 0:00:03.7]} 31... b6 {[%clk 0:01:12]} 32. h4
{[%clk 0:00:02.3]} 32... a4 {[%clk 0:01:01.8]} 33. Qc1 {[%clk 0:00:02.2]} 33...
Be7 {[%clk 0:00:57.3]} 34. h5 {[%clk 0:00:03.1]} 34... gxh5 {[%clk 0:00:55.7]}
35. Bxh5+ {[%clk 0:00:05]} 35... Bg6 {[%clk 0:00:54.8]} 36. Bf3 {[%clk 0:00:06]}
36... b5 {[%clk 0:00:49.9]} 37. Bd1 {[%clk 0:00:06.2]} 37... Qc4 {[%clk
0:00:46.8]} 38. Qd2 {[%clk 0:00:05.7]} 38... Bd3 {[%clk 0:00:39.1]} 39. Qc1
{[%clk 0:00:04.3]} 39... Be4 {[%clk 0:00:35]} 40. Qd2 {[%clk 0:00:05.1]} 40...
Bf5 {[%clk 0:00:32.3]} 41. Bh5+ {[%clk 0:00:05.9]} 41... Bg6 {[%clk 0:00:32.4]}
42. Be2 {[%clk 0:00:07.5]} 42... Qb3 {[%clk 0:00:29.6]} 43. Qc1 {[%clk
0:00:07.7]} 43... Bc2 {[%clk 0:00:28.7]} 44. Bh5+ {[%clk 0:00:08.4]} 44... Kg7
{[%clk 0:00:26.9]} 45. Bg4 {[%clk 0:00:09.5]} 45... Kf7 {[%clk 0:00:24.9]} 46.
Bh5+ {[%clk 0:00:10]} 46... Bg6 {[%clk 0:00:25.8]} 47. Bd1 {[%clk 0:00:10.3]}
47... Qc4 {[%clk 0:00:20.7]} 48. Be2 {[%clk 0:00:11.2]} 48... Bd3 {[%clk
0:00:19.9]} 49. Bh5+ {[%clk 0:00:10.3]} 49... Kf8 {[%clk 0:00:20.2]} 50. Bg4
{[%clk 0:00:11.2]} 50... Bf5 {[%clk 0:00:20.8]} 51. Be2 {[%clk 0:00:11.5]} 51...
Bd3 {[%clk 0:00:21.2]} 52. Bg4 {[%clk 0:00:12.2]} 52... Kf7 {[%clk 0:00:18.1]}
53. Bh5+ {[%clk 0:00:12.8]} 53... Bg6 {[%clk 0:00:18.8]} 54. Be2 {[%clk
0:00:13]} 0-1

[Event "*** MasterClass Titled Tuesday Blitz"]
[Site "Chess.com"]
[Date "2017.12.12"]
[Round "5"]
[White "misha_chessone"]
[Black "kleinebeer98"]
[Result "0-1"]
[WhiteElo "2404"]
[BlackElo "2504"]
[TimeControl "180+2"]
[EndTime "14:07:41 PST"]
[Termination "kleinebeer98 won by resignation"]

1. e4 {[%clk 0:03:01.9]} 1... e5 {[%clk 0:02:58.5]} 2. Nf3 {[%clk 0:03:02.5]}
2... Nc6 {[%clk 0:02:59.6]} 3. Nc3 {[%clk 0:03:04]} 3... Nf6 {[%clk 0:03:00]} 4.
d4 {[%clk 0:03:05]} 4... exd4 {[%clk 0:03:01.1]} 5. Nxd4 {[%clk 0:03:06.4]} 5...
Bb4 {[%clk 0:03:02.7]} 6. Nxc6 {[%clk 0:03:07.1]} 6... bxc6 {[%clk 0:03:04.6]}
7. Bd3 {[%clk 0:03:08.3]} 7... O-O {[%clk 0:03:02.3]} 8. O-O {[%clk 0:03:08.5]}
8... Re8 {[%clk 0:03:03.8]} 9. Qf3 {[%clk 0:02:48.6]} 9... h6 {[%clk 0:02:53.3]}
10. h3 {[%clk 0:02:43.1]} 10... Bb7 {[%clk 0:02:32.3]} 11. Bf4 {[%clk
0:02:30.2]} 11... c5 {[%clk 0:02:24.9]} 12. Rfe1 {[%clk 0:02:28]} 12... d6
{[%clk 0:02:13]} 13. Rad1 {[%clk 0:02:26.1]} 13... Qc8 {[%clk 0:02:00.3]} 14.
Bxh6 {[%clk 0:02:18.3]} 14... Bxc3 {[%clk 0:01:45.2]} 15. bxc3 {[%clk
0:02:17.2]} 15... Nxe4 {[%clk 0:01:35.5]} 16. Bxe4 {[%clk 0:02:10.5]} 16... Bxe4
{[%clk 0:01:35.2]} 17. Rxe4 {[%clk 0:02:06]} 17... Rxe4 {[%clk 0:01:37.1]} 18.
Qxe4 {[%clk 0:02:05.7]} 18... gxh6 {[%clk 0:01:39]} 19. Rd3 {[%clk 0:01:59.9]}
19... Kh8 {[%clk 0:01:26.9]} 20. Rf3 {[%clk 0:01:27.9]} 20... Qe8 {[%clk
0:01:21]} 21. Qf4 {[%clk 0:01:07.2]} 21... Qe1+ {[%clk 0:00:54.1]} 22. Kh2
{[%clk 0:01:07.3]} 22... Qe6 {[%clk 0:00:54.7]} 23. Qxf7 {[%clk 0:01:00.2]}
23... Qxf7 {[%clk 0:00:53.4]} 24. Rxf7 {[%clk 0:01:00.6]} 24... Rb8 {[%clk
0:00:51.9]} 25. Rxc7 {[%clk 0:00:59.5]} 25... Rb2 {[%clk 0:00:52]} 26. Rc6
{[%clk 0:00:53.4]} 26... Rxa2 {[%clk 0:00:46.6]} 27. Rxd6 {[%clk 0:00:53.7]}
27... Kg7 {[%clk 0:00:47.7]} 28. Rc6 {[%clk 0:00:52.8]} 28... Rxc2 {[%clk
0:00:48.7]} 29. Rxc5 {[%clk 0:00:53.6]} 29... Rxf2 {[%clk 0:00:49.6]} 30. Rc7+
{[%clk 0:00:53.2]} 30... Kg6 {[%clk 0:00:49.7]} 31. Rxa7 {[%clk 0:00:53.4]}
31... Rc2 {[%clk 0:00:51.6]} 32. Rc7 {[%clk 0:00:52.9]} 32... h5 {[%clk
0:00:53.5]} 33. Rc5 {[%clk 0:00:52]} 33... h4 {[%clk 0:00:54]} 34. Rc4 {[%clk
0:00:51.4]} 34... Kg5 {[%clk 0:00:54.4]} 35. Rg4+ {[%clk 0:00:51.6]} 35... Kh5
{[%clk 0:00:55]} 36. c4 {[%clk 0:00:52.6]} 36... Rc1 {[%clk 0:00:54.2]} 37. Rd4
{[%clk 0:00:51.8]} 37... Kg5 {[%clk 0:00:53.8]} 38. Rd5+ {[%clk 0:00:51]} 38...
Kg6 {[%clk 0:00:51.7]} 39. c5 {[%clk 0:00:51.3]} 39... Kh6 {[%clk 0:00:51.4]}
40. Rd6+ {[%clk 0:00:51.2]} 40... Kg5 {[%clk 0:00:52.2]} 41. c6 {[%clk 0:00:52]}
41... Kh5 {[%clk 0:00:51.7]} 42. Re6 {[%clk 0:00:48.5]} 42... Kg5 {[%clk
0:00:52]} 43. Rd6 {[%clk 0:00:46.9]} 43... Kf5 {[%clk 0:00:48.9]} 44. g4+ {[%clk
0:00:46]} 44... Ke5 {[%clk 0:00:41.4]} 45. Rh6 {[%clk 0:00:40.9]} 45... Kf4
{[%clk 0:00:42.6]} 46. Rf6+ {[%clk 0:00:37.5]} 46... Ke5 {[%clk 0:00:41.8]} 47.
Rf5+ {[%clk 0:00:38.4]} 47... Ke4 {[%clk 0:00:42.4]} 48. Rf6 {[%clk 0:00:25.3]}
48... Ke5 {[%clk 0:00:42.7]} 49. Rf2 {[%clk 0:00:24.2]} 49... Rxc6 {[%clk
0:00:42.5]} 50. Kg2 {[%clk 0:00:25.2]} 50... Ke4 {[%clk 0:00:42.4]} 51. Re2+
{[%clk 0:00:22.2]} 51... Kf4 {[%clk 0:00:43]} 52. Ra2 {[%clk 0:00:22.7]} 52...
Rc4 {[%clk 0:00:32.2]} 53. Rd2 {[%clk 0:00:22.3]} 53... Ra4 {[%clk 0:00:31]} 54.
Rf2+ {[%clk 0:00:22.5]} 54... Ke3 {[%clk 0:00:26.6]} 55. Rf3+ {[%clk 0:00:22.3]}
55... Ke4 {[%clk 0:00:25.3]} 56. Rf8 {[%clk 0:00:21.9]} 56... Ra2+ {[%clk
0:00:25.7]} 57. Rf2 {[%clk 0:00:22.4]} 57... Ra3 {[%clk 0:00:25.7]} 58. Re2+
{[%clk 0:00:22.7]} 58... Kf4 {[%clk 0:00:26.3]} 59. Rf2+ {[%clk 0:00:23.6]}
59... Ke4 {[%clk 0:00:27.4]} 60. Rc2 {[%clk 0:00:23.5]} 0-1

[Event "*** MasterClass Titled Tuesday Blitz"]
[Site "Chess.com"]
[Date "2017.12.12"]
[Round "5"]
[White "RoelandPruijssers"]
[Black "OparinGrigoriy"]
[Result "1-0"]
[WhiteElo "2482"]
[BlackElo "2660"]
[TimeControl "180+2"]
[EndTime "14:08:05 PST"]
[Termination "RoelandPruijssers won by resignation"]

1. e4 {[%clk 0:03:01.9]} 1... c5 {[%clk 0:03:00.7]} 2. Nf3 {[%clk 0:03:03.3]}
2... Nc6 {[%clk 0:03:01.5]} 3. Nc3 {[%clk 0:03:02.9]} 3... e5 {[%clk 0:03:01.7]}
4. Bc4 {[%clk 0:03:02.3]} 4... Be7 {[%clk 0:03:03.1]} 5. d3 {[%clk 0:03:01.3]}
5... d6 {[%clk 0:03:04.7]} 6. O-O {[%clk 0:03:02.2]} 6... Nf6 {[%clk 0:03:05.3]}
7. h3 {[%clk 0:03:01.4]} 7... O-O {[%clk 0:03:05.9]} 8. Bg5 {[%clk 0:02:45.3]}
8... Kh8 {[%clk 0:02:58.7]} 9. Re1 {[%clk 0:02:40.1]} 9... Be6 {[%clk
0:02:43.3]} 10. a3 {[%clk 0:02:39.9]} 10... Ng8 {[%clk 0:02:36.6]} 11. Bd2
{[%clk 0:02:32.1]} 11... Qd7 {[%clk 0:02:33.7]} 12. Nd5 {[%clk 0:02:29.9]} 12...
f5 {[%clk 0:02:23.2]} 13. b4 {[%clk 0:02:08.8]} 13... fxe4 {[%clk 0:02:15.7]}
14. dxe4 {[%clk 0:02:10.7]} 14... Nd4 {[%clk 0:02:08.6]} 15. Nxd4 {[%clk
0:02:06]} 15... cxd4 {[%clk 0:02:10.5]} 16. Bd3 {[%clk 0:02:00.1]} 16... Rac8
{[%clk 0:02:07.7]} 17. Rc1 {[%clk 0:01:57.2]} 17... Nf6 {[%clk 0:01:43.7]} 18.
Nxe7 {[%clk 0:01:54.8]} 18... Qxe7 {[%clk 0:01:44.5]} 19. c3 {[%clk 0:01:56.3]}
19... dxc3 {[%clk 0:01:40.7]} 20. Rxc3 {[%clk 0:01:58.2]} 20... Rxc3 {[%clk
0:01:33.2]} 21. Bxc3 {[%clk 0:02:00.1]} 21... Nd7 {[%clk 0:01:34.3]} 22. Qe2
{[%clk 0:01:54.7]} 22... Nb6 {[%clk 0:01:34.9]} 23. Bd2 {[%clk 0:01:46.4]} 23...
Rc8 {[%clk 0:01:31.5]} 24. Be3 {[%clk 0:01:46.6]} 24... Kg8 {[%clk 0:01:31.7]}
25. Bxb6 {[%clk 0:01:35.8]} 25... axb6 {[%clk 0:01:33.6]} 26. Qd2 {[%clk
0:01:37.3]} 26... h6 {[%clk 0:01:29.3]} 27. Rc1 {[%clk 0:01:36.1]} 27... Rc7
{[%clk 0:01:30.9]} 28. Rc3 {[%clk 0:01:13.6]} 28... Kh7 {[%clk 0:01:30.5]} 29.
Qc2 {[%clk 0:01:11.9]} 29... Rxc3 {[%clk 0:01:31.5]} 30. Qxc3 {[%clk 0:01:13.8]}
30... Qg5 {[%clk 0:01:32.9]} 31. Bb5 {[%clk 0:01:10.1]} 31... Qf4 {[%clk
0:01:27.2]} 32. g3 {[%clk 0:01:08.9]} 32... Qf7 {[%clk 0:01:20.7]} 33. h4 {[%clk
0:01:10.1]} 33... Bg4 {[%clk 0:01:21.4]} 34. Bc4 {[%clk 0:01:07.1]} 34... Qe8
{[%clk 0:01:04.3]} 35. Bd5 {[%clk 0:01:07.5]} 35... Qb5 {[%clk 0:01:05.5]} 36.
Qc7 {[%clk 0:00:49.1]} 36... Bh3 {[%clk 0:00:49.9]} 37. Bc4 {[%clk 0:00:50.2]}
37... Qe8 {[%clk 0:00:23.9]} 38. Qxd6 {[%clk 0:00:42.6]} 38... Qc8 {[%clk
0:00:18.8]} 39. Bf7 {[%clk 0:00:26.4]} 39... Bg4 {[%clk 0:00:06.8]} 40. Bg6+
{[%clk 0:00:26.2]} 40... Kh8 {[%clk 0:00:08.3]} 41. Qxe5 {[%clk 0:00:24.9]}
41... Bf3 {[%clk 0:00:09.9]} 42. Kh2 {[%clk 0:00:19.5]} 42... Qf8 {[%clk
0:00:10.9]} 43. Qe6 {[%clk 0:00:14.3]} 43... Qd8 {[%clk 0:00:08]} 44. e5 {[%clk
0:00:14.9]} 44... Bc6 {[%clk 0:00:07.5]} 45. Qd6 {[%clk 0:00:16.2]} 45... Qg8
{[%clk 0:00:05.3]} 46. e6 {[%clk 0:00:16]} 46... Be8 {[%clk 0:00:05.8]} 47. Bxe8
{[%clk 0:00:16.5]} 47... Qxe8 {[%clk 0:00:07.7]} 48. e7 {[%clk 0:00:17.5]} 48...
Qf7 {[%clk 0:00:09.3]} 49. Qd8+ {[%clk 0:00:18.8]} 49... Kh7 {[%clk 0:00:10.9]}
50. Qd3+ {[%clk 0:00:19.9]} 50... g6 {[%clk 0:00:12.3]} 51. Qe3 {[%clk
0:00:19.4]} 51... Qe8 {[%clk 0:00:13.7]} 52. g4 {[%clk 0:00:20.4]} 52... Kg7
{[%clk 0:00:13.9]} 53. Kg3 {[%clk 0:00:21.5]} 53... Kf7 {[%clk 0:00:14.1]} 54.
f4 {[%clk 0:00:22.7]} 54... b5 {[%clk 0:00:13.5]} 55. Qe5 {[%clk 0:00:22.5]}
55... Kg8 {[%clk 0:00:10.9]} 56. Qf6 {[%clk 0:00:22.4]} 56... b6 {[%clk
0:00:07.9]} 57. Kf2 {[%clk 0:00:21.5]} 57... Kh7 {[%clk 0:00:07.9]} 58. Qf8
{[%clk 0:00:21.4]} 58... Qc6 {[%clk 0:00:07.2]} 59. Qf7+ {[%clk 0:00:22.2]} 1-0